Cogmind - Beta 14 @@@ ROGUE MODE // 2024.08.25 @ 20:14:31 Player: CONM Result: Destroyed by Y-45 Defender with Beam Rifle Performance ------------- Evolutions (1) 500 Regions Visited (3) 600 Robots Destroyed (27) 135 Value Destroyed (772) 772 Prototype IDs (0) 0 Alien Tech Used (0) 0 Bonus (0) 0 TOTAL SCORE: 2007 Bonus ------- None Cogmind --------- Core Integrity 0/400 Matter 117/300 Energy 99/100 System Corruption 0% Temperature Cool (9) Movement Core (50) Location -9/Storage Parts ------- > --- POWER (1) -------- (None) > --- PROPULSION (4) --- (None) > --- UTILITY (2) ------ (None) > --- WEAPON (2) ------- (None) > --- INVENTORY (5) ---- Aluminum Leg Improved Heat Sink Small Storage Unit Signal Interpreter Peak State ------------ > --- POWER ------------ Improved Ion Engine > --- PROPULSION ------- Aluminum Leg Hover Unit Hover Unit Improved Hover Unit > --- UTILITY ---------- Large Storage Unit Weight Redist. System > --- WEAPON ----------- Particle Gun Maul > --- INVENTORY -------- Light Ion Engine Improved Heat Sink Cooling System Small Storage Unit Signal Interpreter Light Armor Plating Tractor Beam Grenade Launcher Grenade Launcher [Rating: 15] Favorites ----------- Power Ion Engine Engine Ion Engine Propulsion Aluminum Leg Leg Aluminum Leg Hover Unit Hover Unit Utility Large Storage Unit Device Seismic Detector Storage Large Storage Unit Protection Light Armor Plating Weapon Assault Rifle Energy Gun Small Laser Ballistic Gun Assault Rifle Launcher Grenade Launcher Impact Weapon Maul Build | -11 -10 -9 -9 ------- Run | Yrd Mat Mat Sto Slots Evolved 2 | . . 2 . Power . | . . . . Propulsion 2 | . . 2 . Utility . | . . . . Weapon . | . . . . Parts Attached 37 | 8 2 25 2 Power 6 | 2 . 3 1 Engine 6 | 2 . 3 1 Core . | . . . . Reactor . | . . . . Propulsion 9 | 2 . 7 . Treads . | . . . . Leg 6 | 2 . 4 . Wheel . | . . . . Hover 3 | . . 3 . Flight . | . . . . Utility 5 | 2 1 2 . Device 2 | 1 . 1 . Storage 2 | 1 1 . . Processor . | . . . . Hackware . | . . . . Protection 1 | . . 1 . Artifact . | . . . . Weapon 17 | 2 1 13 1 Energy Gun 8 | 1 . 7 . Energy Cannon . | . . . . Ballistic Gun 3 | 1 . 2 . Ballistic Cannon . | . . . . Launcher 3 | . 1 2 . Special Weapon . | . . . . Impact Weapon 3 | . . 2 1 Slashing Weapon . | . . . . Piercing Weapon . | . . . . Special Melee Weapon . | . . . . Unidentified Prototypes . | . . . . Parts Lost 14 | . . 9 5 Power 2 | . . 2 . Propulsion 6 | . . 3 3 Utility 2 | . . 1 1 Weapon 4 | . . 3 1 Highest Loss Streak 5 | . . 3 5 To Critical Strikes . | . . . . Average Slot Usage (%) 86 | . 100 84 48 Engine 10 | . 14 10 . Leg 26 | . 28 30 . Hover 2 | . . . 22 Device 9 | . 14 7 8 Storage 11 | . 14 11 8 Protection 2 | . . 3 . Energy Gun 5 | . 1 8 . Ballistic Gun 8 | . 14 7 . Launcher 5 | . 12 3 . Impact Weapon 1 | . . 1 8 Peak Build Rating 15 | 7 8 15 11 Average Rating 8 | 5 7 10 7 On Entrance 6 | . 7 8 9 Naked Turns 22 | . . . 22 Heaviest Build 36 | 14 31 36 26 Greatest Support 40 | 20 20 40 25 Greatest Overweight (x) 7 | 4 1 3 7 Average Overweight (x) . | . . . . Largest Inventory Capacity 15 | 8 15 15 15 Average Capacity 13 | 7 13 15 13 Most Carried 15 | 1 10 15 13 Average Carried 9 | . 5 12 11 Final Capacity 15 | 8 15 15 5 Final Carried 12 | 1 10 12 4 Class Distribution -------------------- 75% | Mutant 24% | Scavenger-Mutant Dominant Class ---------------- Mutant | -10/Materials Scavenger-Mutant | -9/Materials Mutant | -9/Storage Resources | -11 -10 -9 -9 ----------- Run | Yrd Mat Mat Sto Matter Collected 630 | 229 16 322 63 Remotely . | . . . . Salvage Created 855 | 24 343 488 . Parts 67 | 3 26 38 . Haulers Intercepted 1 | . 1 . . Recyclers Shooed . | . . . . Parts Field Recycled . | . . . . Retrieved Matter . | . . . . Parts Self-Destructed . | . . . . Prevented . | . . . . Kills | -11 -10 -9 -9 ------- Run | Yrd Mat Mat Sto Combat Hostiles Destroyed 21 | . 10 11 . Melee 1 | . . 1 . Guns 10 | . 3 7 . AOE 9 | . 7 2 . Classes Destroyed 9 | 1 4 4 . Worker 1 | . . 1 . Builder 1 | . . 1 . Tunneler 1 | 1 . . . Hauler 1 | . 1 . . Recycler 1 | . 1 . . Watcher 1 | . . 1 . Swarmer 3 | . 3 . . Grunt 14 | . 7 7 . Sentry 4 | . . 4 . Best Kill Streak 4 | 1 3 4 . Combat Bots Only 3 | . 3 2 . Max Kills in Single Turn 3 | 1 3 1 . Gunslinging . | . . . . Exploded 2 | . 2 1 . Melee 1 | . . 1 . Uniques/NPCs Destroyed . | . . . . Combat | -11 -10 -9 -9 -------- Run | Yrd Mat Mat Sto Hostile Shots Fired 177 | . 38 81 58 Missed 57 | . 17 24 16 Damage Taken 1606 | . 245 783 578 Core 437 | . 25 92 320 Absorbed by Shields . | . . . . Core Remaining (%) 95 | 100 90 . . Volleys Fired 64 | 1 23 40 . Largest 2 | 2 2 2 . Hottest 105 | 60 50 105 . Shots Fired 107 | 2 33 72 . Gun 91 | 2 23 66 . Cannon . | . . . . Launcher 16 | . 10 6 . Special . | . . . . Kinetic 51 | 1 23 27 . Thermal 40 | 1 . 39 . Explosive 16 | . 10 6 . Electromagnetic . | . . . . Robot Hit Streak 9 | 2 5 9 . Robot Miss Streak 3 | . 2 3 . Penetration Max . | . . . . Secondary Targets 1 | . . 1 . Max Gunslinging Chain 1 | . . 1 . Shots Hit Robots 83 | 2 21 56 4 Core Hits 50 | 1 21 28 . Critical Kills . | . . . . Critical Parts Destroyed 2 | . . 1 1 Critical Strikes 2 | . . 1 1 Smash 2 | . . 1 1 Melee Attacks 15 | . . 7 8 Impact 15 | . . 7 8 Slashing . | . . . . Piercing . | . . . . Sneak Attacks . | . . . . Combat Hostiles . | . . . . Follow-up Attacks . | . . . . Damage Inflicted 1830 | 22 840 879 89 Guns 850 | 22 166 662 . Cannons . | . . . . Explosions 807 | . 674 133 . Melee 173 | . . 84 89 Ramming . | . . . . Kinetic 448 | 10 166 272 . Thermal 402 | 12 . 390 . Explosive 807 | . 674 133 . Electromagnetic . | . . . . Impact 173 | . . 84 89 Slashing . | . . . . Piercing . | . . . . Highest Corruption 1 | . 1 . . Average Corruption 1 | . 1 . . Corruption Purged . | . . . . Corruption Blocked . | . . . . Effects 1 | . 1 . . Data Loss (minor) 1 | . 1 . . Overload Shots . | . . . . Overflow Damage 62 | . . 38 24 Projectiles . | . . . . Explosions . | . . . . Melee 62 | . . 38 24 Knockbacks 1 | . . 1 . Impact 1 | . . 1 . Kinetic . | . . . . Secondary . | . . . . Self-Inflicted Damage 7 | . 7 . . Shots 1 | . 1 . . Rammed . | . . . . Targets Rammed . | . . . . Kicked . | . . . . Crushed . | . . . . Highest Temperature 307 | . 15 307 12 Average Temperature 74 | . 3 83 12 Received Heat Transfer 825 | . 132 417 276 Siege Activations . | . . . . Robots Corrupted 1 | . . 1 . Combat Hostiles 1 | . . 1 . Parts Fried . | . . . . Impact Corruptions 3 | . . 2 1 Robots Melted . | . . . . Combat Hostiles . | . . . . Parts Melted . | . . . . Heat Transferred 955 | 25 . 930 . Parts Sabotaged . | . . . . Parts Stolen . | . . . . Parts Stripped . | . . . . Power Chain Reactions . | . . . . Alert | -11 -10 -9 -9 ------- Run | Yrd Mat Mat Sto Peak Influence 185 | 5 185 181 71 Initial 59 | . 3 59 24 Average 89 | . 94 108 56 Maximum Alert Level . | . . . . Low Security (%) 100 | 100 100 100 100 Level 1 . | . . . . Level 2 . | . . . . Level 3 . | . . . . Level 4 . | . . . . Level 5 . | . . . . High Security . | . . . . Max Security . | . . . . Squads Dispatched 4 | . 1 2 1 Investigation 2 | . . 2 . Extermination . | . . . . Reinforcement 2 | . 1 . 1 Assault . | . . . . Garrison . | . . . . Intercept . | . . . . Searches Triggered . | . . . . Construction Impeded . | . . . . Haulers Reinforced . | . . . . Active Scanning Responses . | . . . . Cargo Convoy Interrupts . | . . . . Stealth | -11 -10 -9 -9 --------- Run | Yrd Mat Mat Sto Distress Signals 4 | . 1 3 . Communications Jammed . | . . . . Distress Signals . | . . . . Times Spotted 43 | . 14 20 9 Peak Tracking Total 7 | . 4 4 7 Tactical Retreats 3 | . . 2 1 Traps | -11 -10 -9 -9 ------- Run | Yrd Mat Mat Sto Traps Triggered 3 | . 1 2 . Indirectly . | . . . . Trap Hack Attempts . | . . . . Triggered . | . . . . Disarmed . | . . . . Reprogrammed . | . . . . Reused . | . . . . Traps Extracted . | . . . . Installed . | . . . . Triggered . | . . . . Machines | -11 -10 -9 -9 ---------- Run | Yrd Mat Mat Sto Machines Disabled 1 | . . . 1 Max in Single Turn 1 | . . . 1 Machines Repaired . | . . . . Machines Dismantled . | . . . . Machines Sabotaged . | . . . . Overloaded Fab Kills . | . . . . Hacking | -11 -10 -9 -9 --------- Run | Yrd Mat Mat Sto Machines Accessed 6 | . 1 5 . Terminals 6 | . 1 5 . Fabricators . | . . . . Repair Stations . | . . . . Recycling Units . | . . . . Scanalyzers . | . . . . Garrison Access . | . . . . Total Hacks 12 | . 2 10 . Successful 2 | . 1 1 . Failed 10 | . 1 9 . Catastrophic 2 | . . 2 . Database Lockouts . | . . . . Manual 8 | . 1 7 . Terminals 12 | . 2 10 . Fabricators . | . . . . Repair Stations . | . . . . Recycling Units . | . . . . Scanalyzers . | . . . . Garrison Access . | . . . . Terminal Hacks . | . . . . Fabricator Hacks . | . . . . Repair Station Hacks . | . . . . Recycling Unit Hacks . | . . . . Scanalyzer . | . . . . Garrison Access Hacks . | . . . . Unauthorized Hacks 2 | . 1 1 . Terminals 2 | . 1 1 . Botnet 2 | . 1 1 . Fabricators . | . . . . Repair Stations . | . . . . Recycling Units . | . . . . Scanalyzers . | . . . . Garrison Access . | . . . . Data Cores Recovered . | . . . . Used . | . . . . Hacking Detections 6 | . 1 5 . Full Trace Events 1 | . . 1 . Feedback Events . | . . . . Feedback Blocked . | . . . . Robot Schematics Acquired . | . . . . Robots Built . | . . . . Authchips . | . . . . Time . | . . . . Total Robot Build Rating . | . . . . Part Schematics Acquired . | . . . . Parts Built . | . . . . Authchips . | . . . . Time . | . . . . Total Part Build Rating . | . . . . Parts Repaired . | . . . . Time . | . . . . Parts Recycled . | . . . . Recycled Matter . | . . . . Retrieved Matter . | . . . . Retrieved Components . | . . . . Parts Scanalyzed . | . . . . Part Schematics Acquired . | . . . . Parts Damaged . | . . . . Bothacking | -11 -10 -9 -9 ------------ Run | Yrd Mat Mat Sto Used RIF Installer . | . . . . Robots Hacked . | . . . . Non-combat . | . . . . Combat . | . . . . Robot Hacks Applied . | . . . . Relay Couplers Released . | . . . . Fabnet Peak Effective % . | . . . . Robots Rewired . | . . . . Allies Hacked . | . . . . Hacks Repelled . | . . . . Allies | -11 -10 -9 -9 -------- Run | Yrd Mat Mat Sto Total Allies . | . . . . Largest Group . | . . . . Highest-Rated Group . | . . . . Highest-Rated Ally . | . . . . Total Orders . | . . . . Ally Attacks . | . . . . Total Damage . | . . . . Kills . | . . . . Allies Corrupted . | . . . . Allies Melted . | . . . . Intel | -11 -10 -9 -9 ------- Run | Yrd Mat Mat Sto Robot Analysis Total . | . . . . Derelict Logs Recovered . | . . . . Drone Launches . | . . . . Drone Recoveries . | . . . . Exploration | -11 -10 -9 -9 ------------- Run | Yrd Mat Mat Sto Turns Passed 1630 | 169 477 858 126 Spaces Moved 847 | 75 244 402 126 Core 63 | 18 . . 45 Treads . | . . . . Legs 669 | 57 244 368 . Wheels . | . . . . Hover 115 | . . 34 81 Flight . | . . . . Fastest Speed 50 | 50 120 52 50 Average Speed 148 | 133 167 161 77 Slowest Speed 400 | 250 190 330 400 Overloaded Moves . | . . . . Propulsion Burnouts . | . . . . Robots Hopped . | . . . . Cave-ins Triggered . | . . . . Exploration Rate (%) 28 | 6 50 33 23 Regions Visited 3 Branch Regions 1 Pre-discovered Areas . | . . . . Known Exits Taken . | . . . . Unknown Exits Taken 3 | 1 1 1 . Scrap Searched . | . . . . Spaces Dug 7 | . . 5 2 Terrain Destroyed 82 | . 56 24 2 Melee 7 | . . 5 2 Projectile . | . . . . AOE 75 | . 56 19 . Terrain Rammed . | . . . . Walls Destroyed . | . . . . Machines Disabled . | . . . . Actions | -11 -10 -9 -9 --------- Run | Yrd Mat Mat Sto Total 1075 | 138 278 519 140 Wait 93 | 55 2 36 . Move 844 | 74 243 401 126 Hop . | . . . . Pick Up 16 | . 8 7 1 Fast Attach 11 | 7 . 4 . Attach 12 | . . 10 2 Detach 4 | . . 3 1 Swap 14 | 1 2 11 . Drop 2 | . . . 2 Fire 64 | 1 23 40 . Melee 15 | . . 7 8 Ram . | . . . . Kick . | . . . . Crush . | . . . . Escape Stasis . | . . . . Rewire . | . . . . Trap . | . . . . Miscellaneous . | . . . . Route ------- -11/Scrapyard -10/Materials (discovered 2 exits: *Mat / [*Min]) -9/Materials (discovered 2 exits: [*Min] / [*Sto]) -9/Storage History --------- Turn | Location | Event 22 | -11/Scrapyard | Discovered new exit (range 15) 170 | -11/Scrapyard | Entered Materials 304 | -10/Materials | Build established: Mutant 417 | -10/Materials | Discovered new exit (range 9) 626 | -10/Materials | Discovered new exit (range 9) 647 | -10/Materials | Entered another Materials area 647 | -9/Materials | Evolved 2 slots: Propulsion x2 1218 | -9/Materials | Lost 3 parts (1p1u1w) 1347 | -9/Materials | Discovered new exit (range 6) 1497 | -9/Materials | Discovered new exit (range 10) 1505 | -9/Materials | Entered Storage 1603 | -9/Storage | Core integrity fell below 50% 1616 | -9/Storage | Core integrity fell below 20% 1631 | -9/Storage | Destroyed by Y-45 Defender with Beam Rifle Last Messages --------------- 01559_ K-01 Serf collects debris. 01562_ K-01 Serf cleans the Transfer Shaft. 01576_ Y-45 Defender suffers critical hit (Smash). 01576_ Destroyed Hvy. Assault Rifle. 01576_ Y-45 Defender system corrupted by crushing effect. 01577_ K-01 Serf collects debris. 01584_ Critical hit (Burn: +37). 01586_ Hover Unit destroyed. 01588_ Y-45 Defender misfires. 01594_ Imp. Hover Unit destroyed. 01595_ K-01 Serf cleans the Compression Vault. 01598_ Hover Unit destroyed. 01607_ Maul destroyed. 01608_ Dropped Lrg. Storage Unit. 01609_ Weight Redist. System destroyed. 01609_ Dropped Imp. Ion Engine. 01611_ R-06 Scavenger collects Tractor Beam. 01611_ U-05 Engineer builds a Door. 01614_ A-02 Transporter destroyed. 01614_ R-06 Scavenger collects Rocket Launcher. Map ----- +----------------------------------------------------+ | ????# # #????????????????????? | | ????# ###########????????????????????? | | ????# ######### ####?????????????????? | | ????# # [ ?????????????????? | | ????# # ?????????????????? | | ????# # """ """ """ ?????????????????? | | ????# # """ """ ""???????????????????? | | ????# + """ """ """ #????????????????? | | ????# # #????????????????? | | ????# #"#####+######?????????????????? | | ????# ### ! #?????????????????? | | ????#^ #?## #?????????????????? | | ????##+##??# """ """ #?????????????????? | | ???? ???# """ """ #?????????????????? | | ????? ??# """ """ #?????????????????? | | ????"""" ??# #?????????????????? | | ????"""" ?# #?????????????????? | | ? ? """" ?# ] #?????????????????? | | ?# """" ###+#######?????????????????? | | ?# *!# [ ####### ##????????????? | | ?# *]+! #????????????? | | ?????#######! +????????????? | | ???????????# ######### #????????????? | | ???????????##! ##########+#????????????? | | ????????????#rY# u #????????????? | | ????????????#Y!@ """ "???????????????? | | ????????????#!!# """ Y??????????????? | | ???????###### # """ "???????????????? | | ???????# Y #? Y ???????????????? | | ???????# g #?#### #????????????????? | | ???????+ ##+#/######?#????????????????? | | ???????# ??# #??????????????????? | | ???????#???# #??????????????????? | | ???????????# """" #??????????????????? | | ???????????# "??"" #??????????????????? | | ???????????# "???"" #??????????????????? | | ???????????# ""???" #??????????????????? | | ???????????# ""??" #??????????????????? | | ???????????# """" #??????????????????? | | ???????????# #??????????????????? | | ???????????##########??????????????????? | | ???????????????????????????????????????? | | ???????????????????????????????????????? | | ???????????????????????????????????????? | | ???????????????????????????????????????? | | ???????????????????????????????????????? | | ???????????????????????????????????????? | | ???????????????????????????????????????? | | | | | +----------------------------------------------------+ Best States ------------- Heat Dissipation 28 Energy Generation 12 Energy Capacity 265 Matter Stores 246 Matter Capacity 300 Sight Range 16 Terrain Scan Density 10 Additional Mass Support 6 Armor Coverage 150 Evasion (%) 55 Item Schematics ----------------- None Robot Schematics ------------------ None Fabricated ------------ Nothing Alien Tech Used ----------------- None Achievements -------------- None Challenges ------------ None Game ------ Seed WeightGuidedWheel Manual? 0 Play Time 00:18:00 Cumulative 61.5 hours Start 2024.08.25 @ 18:08:46 End 2024.08.25 @ 20:14:31 Sessions 3 Manual Loads 0 Difficulty Rogue Special Mode None Game No. 86 Rogue 86 Adventurer 0 Explorer 0 Win Type - Total 0 Types 0/0/0/0/0/0/0/0/0 Lore% 24 Gallery% 33 Achievement% 38 Wizard Run 0 Options --------- Layout 0 ASCII 0 Keyboard 0 Movement Arrows Keybinds 0 Fullscreen 2 Font 18/SmallcapsGlow Map View 38x25 Zoom Use 41% Tactical HUD 1 Map Filters NONE Filters NONE Steam 1 RUN: b4618c3b-215d-4902-8b8f-f93dda1899ab